fUSD/lending_fUSD_20250809
["ID","MTS","AMOUNT","RATE_DAILY","PERIOD"]
[378132698,1754740300390,-566.47,0.00026301,2]
[378132699,1754740300399,-478.16,0.00026301,2]
[378132700,1754740300408,-2681.42,0.00026301,2]
[378132701,1754740300418,-400.0,0.00026301,2]
[378132702,1754740300428,-400.0,0.00026301,2]
[378132703,1754740300437,-400.0,0.00026301,2]
[378132704,1754740300447,-761.35,0.00026301,2]
[378132705,1754740300457,-400.0,0.00026301,2]
[378132706,1754740300466,-400.0,0.00026301,2]
[378132707,1754740300475,-400.0,0.00026301,2]
[378132708,1754740300485,-628.39,0.00026301,2]
[378132709,1754740300494,-2630.77,0.00026301,2]
[378132710,1754740300504,-412.86,0.00026301,2]
[378132711,1754740300513,-496.22,0.00026301,2]
[378132712,1754740300524,-473.3,0.00026301,2]
[378132713,1754740300533,-400.0,0.00026301,2]
[378132714,1754740300543,-400.0,0.00026301,2]
[378132715,1754740300553,-483.24,0.00026301,2]
[378132716,1754740300563,-2958.86,0.00026301,2]
[378132717,1754740300572,-400.0,0.00026301,2]
[378132718,1754740300582,-400.0,0.00026301,2]
[378132719,1754740300591,-400.0,0.00026301,2]
[378132720,1754740300601,-1584.12,0.00026301,2]
[378132721,1754740300611,-503.42,0.00026301,2]
[378132722,1754740300620,-522.73,0.00026301,2]
[378132723,1754740300630,-750.16,0.00026301,2]
[378132724,1754740300639,-1129.34,0.00026301,2]
[378132725,1754740300648,-860.64,0.00026301,2]
[378132726,1754740300658,-400.0,0.00026301,2]
[378132727,1754740300668,-645.99,0.00026301,2]
[378132728,1754740300678,-400.0,0.00026301,2]
[378132729,1754740300687,-400.0,0.00026301,2]
[378132730,1754740300696,-661.26,0.00026301,2]
[378132731,1754740300707,-400.0,0.00026301,2]
[378132732,1754740300716,-400.0,0.00026301,2]
[378132733,1754740300726,-400.0,0.00026301,2]
[378132734,1754740300737,-693.02,0.00026301,2]
[378132735,1754740300747,-413.22,0.00026301,2]
[378132736,1754740300756,-976.31,0.00026301,2]
[378132737,1754740300766,-483.75,0.00026301,2]
[378132738,1754740300775,-400.0,0.00026301,2]
[378132739,1754740300784,-886.67,0.00026301,2]
[378132740,1754740300794,-400.0,0.00026301,2]
[378132741,1754740300805,-775.8,0.00026301,2]
[378132742,1754740300815,-713.67,0.00026301,2]
[378132743,1754740300825,-400.0,0.00026301,2]
[378132744,1754740300835,-400.0,0.00026301,2]
[378132745,1754740300844,-731.98,0.00026301,2]
[378132746,1754740300855,-918.3,0.00026301,2]
[378132747,1754740300864,-817.97,0.00026301,2]
[378132748,1754740300873,-723.56,0.00026301,2]
[378132749,1754740300882,-400.0,0.00026301,2]
[378132750,1754740300891,-400.0,0.00026301,2]
[378132751,1754740300900,-400.0,0.00026301,2]
[378132752,1754740300909,-400.0,0.00026301,2]
[378132753,1754740300918,-400.0,0.00026301,2]
[378132754,1754740300927,-400.0,0.00026301,2]
[378132755,1754740300937,-475.37,0.00026301,2]
[378132756,1754740300946,-400.0,0.00026301,2]
[378132757,1754740300956,-466.81,0.00026301,2]
[378132758,1754740300965,-400.0,0.00026301,2]
[378132759,1754740300974,-492.31122938,0.00026301,2]
[378132760,1754740300983,-755.62,0.00026301,2]
[378132761,1754740300993,-916.88,0.00026301,2]
[378132762,1754740301002,-620.12,0.00026301,2]
[378132763,1754740301011,-631.14,0.00026301,2]
[378132764,1754740301020,-400.0,0.00026301,2]
[378132765,1754740301029,-598.09,0.00026301,2]
[378132766,1754740301038,-400.0,0.00026301,2]
[378132767,1754740301048,-682.61,0.00026301,2]
[378132768,1754740301058,-1066.29,0.00026301,2]
[378132769,1754740301067,-829.05,0.00026301,2]
[378132770,1754740301076,-427.18,0.00026301,2]
[378132771,1754740301086,-518.73,0.00026301,2]
[378132772,1754740301095,-635.68,0.00026301,2]
[378132773,1754740301105,-400.0,0.00026301,2]
[378132774,1754740301114,-400.0,0.00026301,2]
[378132775,1754740301124,-549.69,0.00026301,2]
[378132776,1754740301133,-564.93,0.00026301,2]
[378132777,1754740301143,-679.94,0.00026301,2]
[378132778,1754740301152,-400.0,0.00026301,2]
[378132779,1754740301161,-400.0,0.00026301,2]
[378132780,1754740301171,-1507.77,0.00026301,2]
[378132781,1754740301180,-1312.48,0.00026301,2]
[378132782,1754740301190,-400.0,0.00026301,2]
[378132783,1754740301199,-582.81,0.00026301,2]
[378132784,1754740301209,-476.07,0.00026301,2]
[378132785,1754740301219,-400.0,0.00026301,2]
[378132786,1754740301228,-400.0,0.00026301,2]
[378132787,1754740301237,-400.0,0.00026301,2]
[378132788,1754740301247,-400.0,0.00026301,2]
[378132789,1754740301257,-861.24,0.00026301,2]
[378132790,1754740301267,-1223.84,0.00026301,2]
[378132791,1754740301276,-1053.17,0.00026301,2]
[378132792,1754740301286,-400.0,0.00026301,2]
[378132793,1754740301299,-400.0,0.00026301,2]
[378132794,1754740301308,-876.41,0.00026301,2]
[378132795,1754740301318,-400.0,0.00026301,2]
[378132796,1754740301328,-197.93327402,0.00026301,2]
[378132797,1754740301338,-650.4,0.00026301,2]
[378132798,1754740301348,-961.84,0.00026301,2]
[378132799,1754740301357,-400.0,0.00026301,2]
[378132800,1754740301368,-400.0,0.00026301,2]
[378132801,1754740301378,-1661.19,0.00026301,2]
[378132802,1754740301387,-400.0,0.00026301,2]
[378132803,1754740301397,-587.88,0.00026301,2]
[378132804,1754740301406,-753.78,0.00026301,2]
[378132805,1754740301416,-738.08,0.00026301,2]
[378132806,1754740301433,-854.59,0.00026301,2]
[378132807,1754740301450,-531.13,0.00026301,2]
[378132808,1754740301469,-869.45,0.00026301,2]
[378132809,1754740301489,-400.0,0.00026301,2]
[378132810,1754740301504,-400.0,0.00026301,2]
[378132811,1754740301521,-1000.0,0.00026301,7]
[378132812,1754740301538,-400.0,0.00026301,2]
[378132813,1754740301556,-634.18,0.00026301,2]
[378132814,1754740301575,-444.48,0.00026301,2]
[378132815,1754740301592,-400.0,0.00026301,2]
[378132816,1754740301612,-400.0,0.00026301,2]
[378132817,1754740301627,-400.0,0.00026301,2]
[378132818,1754740301641,-433.37,0.00026301,2]
[378132819,1754740301659,-1092.69,0.00026301,2]
[378132820,1754740301671,-1156.97,0.00026301,2]
[378132821,1754740301688,-621.02,0.00026301,2]
[378132822,1754740301704,-514.42,0.00026301,2]
[378132823,1754740301719,-770.79,0.00026301,2]
[378132824,1754740301734,-400.0,0.00026301,2]
[378132825,1754740301752,-753.35,0.00026301,2]
[378132826,1754740301767,-400.0,0.00026301,2]
[378132827,1754740301781,-491.19,0.00026301,2]
[378132828,1754740301797,-400.0,0.00026301,2]
[378132829,1754740301814,-400.0,0.00026301,2]
[378132830,1754740301831,-998.27,0.00026301,2]
[378132831,1754740301846,-400.0,0.00026301,2]
[378132832,1754740301861,-524.62,0.00026301,2]
[378132833,1754740301876,-400.0,0.00026301,2]
[378132834,1754740301890,-400.0,0.00026301,2]
[378132835,1754740301906,-1045.41,0.00026301,2]
[378132836,1754740301921,-697.79,0.00026301,2]
[378132837,1754740301936,-1056.82,0.00026301,2]
[378132838,1754740301951,-400.0,0.00026301,2]
[378132839,1754740301966,-519.41,0.00026301,2]
[378132840,1754740301981,-518.82,0.00026301,2]
[378132841,1754740301996,-400.0,0.00026301,2]
[378132842,1754740302010,-400.0,0.00026301,2]
[378132843,1754740302025,-400.0,0.00026301,2]
[378132844,1754740302040,-644.26,0.00026301,2]
[378132845,1754740302055,-400.0,0.00026301,2]
[378132846,1754740302070,-400.0,0.00026301,2]
[378132847,1754740302085,-1208.51,0.00026301,2]
[378132848,1754740302100,-1107.23,0.00026301,2]
[378132849,1754740302115,-1086.58,0.00026301,2]
[378132850,1754740302128,-502.24,0.00026301,2]
[378132851,1754740302144,-400.0,0.00026301,2]
[378132852,1754740302158,-606.19,0.00026301,2]
[378132853,1754740302174,-1653.36,0.00026301,2]
[378132854,1754740302189,-581.94,0.00026301,2]
[378132855,1754740302204,-562.59,0.00026301,2]
[378132856,1754740302219,-400.0,0.00026301,2]
[378132857,1754740302234,-1175.27,0.00026301,2]
[378132858,1754740302250,-400.0,0.00026301,2]
[378132859,1754740302265,-1296.14,0.00026301,2]
[378132860,1754740302279,-400.0,0.00026301,2]
[378132861,1754740302298,-887.58,0.00026301,2]
[378132862,1754740302315,-701.81,0.00026301,2]
[378132863,1754740302331,-400.0,0.00026301,2]
[378132864,1754740302346,-1806.81,0.00026301,2]
[378132865,1754740302361,-482.51,0.00026301,2]
[378132866,1754740302374,-1194.67,0.00026301,2]
[378132867,1754740302389,-400.0,0.00026301,2]
[378132868,1754740302405,-1024.46,0.00026301,2]
[378132869,1754740302423,-400.0,0.00026301,2]
[378132870,1754740302438,-400.0,0.00026301,2]
[378132871,1754740302452,-400.0,0.00026301,2]
[378132872,1754740302467,-707.17,0.00026301,2]
[378132873,1754740302481,-400.0,0.00026301,2]
[378132874,1754740302496,-788.89,0.00026301,2]
[378132875,1754740302511,-655.31,0.00026301,2]
[378132876,1754740302525,-400.0,0.00026301,2]
[378132877,1754740302540,-400.0,0.00026301,2]
[378132878,1754740302554,-489.24,0.00026301,2]
[378132879,1754740302569,-421.61,0.00026301,2]
[378132880,1754740302584,-603.71,0.00026301,2]
[378132881,1754740302600,-1105.78,0.00026301,2]
[378132882,1754740302614,-483.98,0.00026301,2]
[378132883,1754740302629,-400.0,0.00026301,2]
[378132884,1754740302644,-461.16,0.00026301,2]
[378132885,1754740302658,-400.0,0.00026301,2]
[378132886,1754740302673,-400.0,0.00026301,2]
[378132887,1754740302688,-518.86,0.00026301,2]
[378132888,1754740302703,-793.74,0.00026301,2]
[378132889,1754740302719,-3032.73,0.00026301,2]
[378132890,1754740302734,-400.0,0.00026301,2]
[378132891,1754740302753,-400.0,0.00026301,2]
[378132892,1754740302768,-1232.84,0.00026301,2]
[378132893,1754740302783,-400.0,0.00026301,2]
[378132894,1754740302798,-597.64,0.00026301,2]
[378132895,1754740302813,-400.0,0.00026301,2]
[378132896,1754740302828,-802.88,0.00026301,2]
[378132897,1754740302842,-400.0,0.00026301,2]
[378132898,1754740302856,-400.0,0.00026301,2]
[378132899,1754740302872,-1029.33,0.00026301,2]
[378132900,1754740302887,-400.0,0.00026301,2]
[378132901,1754740302901,-421.72,0.00026301,2]
[378132902,1754740302915,-400.0,0.00026301,2]
[378132903,1754740302930,-1412.18,0.00026301,2]
[378132904,1754740302944,-532.21,0.00026301,2]
[378132905,1754740302960,-400.0,0.00026301,2]
[378132906,1754740302974,-400.0,0.00026301,2]
[378132907,1754740302989,-594.1,0.00026301,2]
[378132908,1754740303003,-181.12115562,0.00026301,2]
[378132909,1754740303018,-180.77395292,0.00026301,2]
[378132910,1754740303034,-400.0,0.00026301,2]
[378132911,1754740303050,-400.0,0.00026301,2]
[378132912,1754740303065,-400.0,0.00026301,2]
[378132913,1754740303080,-436.21,0.00026301,2]
[378132914,1754740303094,-150.0,0.00026373,2]
[378132915,1754740303109,-221.0,0.0002641,2]
[378132916,1754740303124,-207.0,0.0002641,2]
[378132917,1754740303138,-203.0,0.0002641,2]
[378132918,1754740303153,-445.1,0.00026443,2]
[378132919,1754740303168,-426.2321342,0.00026453,2]
[378132920,1754740304231,-400.0,0.00024657,2]
[378132921,1754740304240,-520.51,0.00024657,2]
[378132922,1754740304250,-400.0,0.00024931,2]
[378132923,1754740304259,-520.51,0.00024931,2]
[378132924,1754740304268,-888.0,0.00025157,3]
[378132925,1754740304278,-2318.15,0.00025205,2]
[378132926,1754740304287,-400.0,0.00025205,2]
[378132927,1754740304297,-400.0,0.00025205,2]
[378132928,1754740304306,-520.51,0.00025205,2]
[378132929,1754740304315,-387.40569615,0.00025379,2]
[378132930,1754740304324,-192.03727542,0.00025479,2]
[378132931,1754740304334,-400.0,0.00025479,2]
[378132932,1754740304343,-400.0,0.00025479,2]
[378132933,1754740304352,-520.51,0.00025479,2]
[378132934,1754740304361,-432.94167611,0.00025593,2]
[378132935,1754740304372,-400.0,0.00025753,2]
[378132936,1754740304381,-400.0,0.00025753,2]
[378132937,1754740304390,-520.51,0.00025753,2]
[378132938,1754740304398,-387.40569612,0.00025982,2]
[378132939,1754740304407,-400.0,0.00026027,2]
[378132940,1754740304417,-310.58420935,0.00026027,2]
[378132941,1754740304426,-520.51,0.00026027,2]
[378132942,1754740304435,-512.47,0.00026301,2]
[378132943,1754740304443,-740.03,0.00026301,2]
[378132944,1754740304453,-400.0,0.00026301,2]
[378132945,1754740304463,-8093.97570897,0.00026453,2]
[378132946,1754740304477,-467.70934487,0.00026475,2]
[378132947,1754740304487,-212.0,0.0002656,2]
[378132948,1754740304496,-648.68104998,0.00026568,2]
[378132949,1754740304508,-400.0,0.00026575,2]
[378132950,1754740304517,-400.0,0.00026575,2]
[378132951,1754740304526,-400.0,0.00026575,2]
[378132952,1754740304535,-400.0,0.00026575,2]
[378132953,1754740304544,-400.0,0.00026575,2]
[378132954,1754740304553,-508.08,0.00026575,2]
[378132955,1754740304563,-400.0,0.00026575,2]
[378132956,1754740304572,-400.0,0.00026575,2]
[378132957,1754740304581,-400.0,0.00026575,2]
[378132958,1754740304590,-400.0,0.00026575,2]
[378132959,1754740304602,-469.63,0.00026575,2]
[378132960,1754740304611,-400.0,0.00026575,2]
[378132961,1754740304620,-400.0,0.00026575,2]
[378132962,1754740304629,-400.0,0.00026575,2]
[378132963,1754740304638,-400.0,0.00026575,2]
[378132964,1754740304646,-400.0,0.00026575,2]
[378132965,1754740304655,-434.6,0.00026575,2]
[378132966,1754740304666,-335.20173072,0.00026575,2]
[378132967,1754740304675,-401.59,0.00026575,2]
[378132968,1754740304684,-400.89,0.00026575,2]
[378132969,1754740304693,-400.0,0.00026575,2]
[378132970,1754740304702,-400.0,0.00026575,2]
[378132971,1754740304712,-400.0,0.00026575,2]
[378132972,1754740304720,-400.0,0.00026575,2]
[378132973,1754740304730,-400.0,0.00026575,2]
[378132974,1754740304739,-400.0,0.00026575,2]
[378132975,1754740304748,-400.0,0.00026575,2]
[378132976,1754740304757,-400.0,0.00026575,2]
[378132977,1754740304767,-152.78879,0.00026575,2]
[378132978,1754740304776,-1127.276391,0.00026575,2]
[378132979,1754740304786,-400.0,0.00026575,2]
[378132980,1754740304795,-400.0,0.00026575,2]
[378132981,1754740304805,-400.0,0.00026575,2]
[378132982,1754740304814,-268.86,0.00026575,2]
[378132983,1754740304823,-400.0,0.00026575,2]
[378132984,1754740304833,-460.17110045,0.00026575,2]
[378132985,1754740304842,-400.0,0.00026575,2]
[378132986,1754740304851,-400.0,0.00026575,2]
[378132987,1754740304860,-400.0,0.00026575,2]
[378132988,1754740304869,-2304.476226,0.00026575,2]
[378132989,1754740304879,-400.0,0.00026575,2]
[378132990,1754740304888,-400.0,0.00026575,2]
[378132991,1754740304898,-523.49,0.00026575,2]
[378132992,1754740304908,-400.0,0.00026575,2]
[378132993,1754740304917,-2164.833233,0.00026575,2]
[378132994,1754740304926,-467.9,0.00026575,2]
[378132995,1754740304936,-400.0,0.00026575,2]
[378132996,1754740304945,-400.0,0.00026575,2]
[378132997,1754740304955,-174.162443,0.00026575,2]
[378132998,1754740304964,-400.0,0.00026575,2]
[378132999,1754740304974,-414.47,0.00026575,2]
[378133000,1754740304984,-400.0,0.00026575,2]
[378133001,1754740304994,-365.35041913,0.00026575,2]
[378133002,1754740305003,-400.0,0.00026575,2]
[378133003,1754740305013,-400.0,0.00026575,2]
[378133004,1754740305022,-565.79,0.00026575,2]
[378133005,1754740305031,-400.0,0.00026575,2]
[378133006,1754740305040,-400.0,0.00026575,2]
[378133007,1754740305050,-400.0,0.00026575,2]
[378133008,1754740305060,-400.0,0.00026575,2]
[378133009,1754740305070,-400.0,0.00026575,2]
[378133010,1754740305080,-624.24,0.00026575,2]
[378133011,1754740305089,-400.0,0.00026575,2]
[378133012,1754740305098,-400.0,0.00026575,2]
[378133013,1754740305108,-695.28,0.00026575,2]
[378133014,1754740305117,-400.0,0.00026575,2]
[378133015,1754740305128,-400.0,0.00026575,2]
[378133016,1754740305138,-400.0,0.00026575,2]
[378133017,1754740305147,-510.89,0.00026575,2]
[378133018,1754740305156,-686.99,0.00026575,2]
[378133019,1754740305166,-400.0,0.00026575,2]
[378133020,1754740305176,-400.0,0.00026575,2]
[378133021,1754740305185,-400.0,0.00026575,2]
[378133022,1754740305194,-528.13,0.00026575,2]
[378133023,1754740305204,-672.5,0.00026575,2]
[378133024,1754740305214,-400.0,0.00026575,2]
[378133025,1754740305223,-400.0,0.00026575,2]
[378133026,1754740305233,-303.82994625,0.00026575,2]
[378133027,1754740305243,-431.8769038,0.00026575,2]
[378133028,1754740305252,-400.0,0.00026575,2]
[378133029,1754740305262,-524.82,0.00026575,2]
[378133030,1754740305272,-501.52,0.00026575,2]
[378133031,1754740305282,-412.43,0.00026575,2]
[378133032,1754740305293,-400.0,0.00026575,2]
[378133033,1754740305303,-400.0,0.00026575,2]
[378133034,1754740305313,-400.0,0.00026575,2]
[378133035,1754740305322,-400.0,0.00026575,2]
[378133036,1754740305332,-413.46268463,0.00026575,2]
[378133037,1754740305343,-400.0,0.00026575,2]
[378133038,1754740305352,-415.49,0.00026575,2]
[378133039,1754740305362,-400.0,0.00026575,2]
[378133040,1754740305372,-500.23,0.00026575,2]
[378133041,1754740305383,-439.13,0.00026575,2]
[378133042,1754740305393,-400.0,0.00026575,2]
[378133043,1754740305403,-400.0,0.00026575,2]
[378133044,1754740305580,-400.0,0.00026575,2]
[378133045,1754740305590,-442.3,0.00026575,2]
[378133046,1754740305600,-425.11,0.00026575,2]
[378133047,1754740305610,-1000.0,0.00026575,2]
[378133048,1754740305619,-400.0,0.00026575,2]
[378133049,1754740305629,-400.0,0.00026575,2]
[378133050,1754740305639,-400.0,0.00026575,2]
[378133051,1754740305649,-202.08967042,0.00026575,2]
[378133052,1754740305659,-400.0,0.00026575,2]
[378133053,1754740305668,-400.0,0.00026575,2]
[378133054,1754740305678,-400.0,0.00026575,2]
[378133055,1754740305687,-514.82,0.00026575,2]
[378133056,1754740305699,-400.0,0.00026575,2]
[378133057,1754740305708,-584.43,0.00026575,2]
[378133058,1754740305718,-465.93,0.00026575,2]
[378133059,1754740305728,-479.21761078,0.00026575,2]
[378133060,1754740305737,-411.24,0.00026575,2]
[378133061,1754740305747,-456.32,0.00026575,2]
[378133062,1754740305756,-400.0,0.00026575,2]
[378133063,1754740305766,-400.0,0.00026575,2]
[378133064,1754740305775,-400.0,0.00026575,2]
[378133065,1754740305785,-400.0,0.00026575,2]
[378133066,1754740305794,-650.41,0.00026575,2]
[378133067,1754740305804,-505.31,0.00026575,2]
[378133068,1754740305813,-421.71,0.00026575,2]
[378133069,1754740305823,-400.0,0.00026575,2]
[378133070,1754740305833,-400.0,0.00026575,2]
[378133071,1754740305842,-400.0,0.00026575,2]
[378133072,1754740305852,-452.76,0.00026575,2]
[378133073,1754740305861,-433.75,0.00026575,2]
[378133074,1754740305871,-198.98552169,0.00026575,2]
[378133075,1754740305880,-400.0,0.00026575,2]
[378133076,1754740305889,-414.8,0.00026575,2]
[378133077,1754740305899,-591.93,0.00026575,2]
[378133078,1754740305909,-400.0,0.00026575,2]
[378133079,1754740305918,-400.0,0.00026575,2]
[378133080,1754740305928,-413.28,0.00026575,2]
[378133081,1754740305937,-485.37,0.00026575,2]
[378133082,1754740305947,-400.0,0.00026575,2]
[378133083,1754740305956,-400.0,0.00026575,2]
[378133084,1754740305966,-400.0,0.00026575,2]
[378133085,1754740305976,-620.14,0.00026575,2]
[378133086,1754740305986,-400.0,0.00026575,2]
[378133087,1754740305996,-475.42,0.00026575,2]
[378133088,1754740306006,-400.0,0.00026575,2]
[378133089,1754740306015,-400.0,0.00026575,2]
[378133090,1754740306026,-723.96,0.00026575,2]
[378133091,1754740306035,-770.94,0.00026575,2]
[378133092,1754740306045,-527.1,0.00026575,2]
[378133093,1754740306055,-400.0,0.00026575,2]
[378133094,1754740306065,-431.36,0.00026575,2]
[378133095,1754740306075,-419.1655554,0.00026575,2]
[378133096,1754740306084,-400.0,0.00026575,2]
[378133097,1754740306094,-400.0,0.00026575,2]
[378133098,1754740306103,-400.0,0.00026575,2]
[378133099,1754740306112,-497.78,0.00026575,2]
[378133100,1754740306122,-400.0,0.00026575,2]
[378133101,1754740306132,-756.29,0.00026575,2]
[378133102,1754740306141,-434.89,0.00026575,2]
[378133103,1754740306150,-400.0,0.00026575,2]
[378133104,1754740306159,-501.7,0.00026575,2]
[378133105,1754740306169,-192.5148332,0.00026575,2]
[378133106,1754740306179,-400.0,0.00026575,2]
[378133107,1754740306188,-400.0,0.00026575,2]
[378133108,1754740306198,-400.0,0.00026575,2]
[378133109,1754740306207,-408.86,0.00026575,2]
[378133110,1754740306217,-400.0,0.00026575,2]
[378133111,1754740306227,-400.0,0.00026575,2]
[378133112,1754740306236,-400.0,0.00026575,2]
[378133113,1754740306247,-400.0,0.00026575,2]
[378133114,1754740306256,-400.0,0.00026575,2]
[378133115,1754740306266,-401.18,0.00026575,2]
[378133116,1754740306276,-400.0,0.00026575,2]
[378133117,1754740306286,-532.77,0.00026575,2]
[378133118,1754740306299,-400.0,0.00026575,2]
[378133119,1754740306309,-400.0,0.00026575,2]
[378133120,1754740306319,-400.0,0.00026575,2]
[378133121,1754740306328,-217.67,0.00026575,2]
[378133122,1754740306338,-353.19873712,0.00026575,2]
[378133123,1754740306348,-400.0,0.00026575,2]
[378133124,1754740306358,-400.0,0.00026575,2]
[378133125,1754740306368,-400.0,0.00026575,2]
[378133126,1754740306377,-400.0,0.00026575,2]
[378133127,1754740306387,-400.0,0.00026575,2]
[378133128,1754740306396,-400.0,0.00026575,2]
[378133129,1754740306406,-442.03,0.00026575,2]
[378133130,1754740306416,-400.0,0.00026575,2]
[378133131,1754740306425,-479.47,0.00026575,2]
[378133132,1754740306435,-553.25,0.00026575,2]
[378133133,1754740306444,-400.0,0.00026575,2]
[378133134,1754740306453,-697.16,0.00026575,2]
[378133135,1754740306463,-517.50816443,0.00026575,2]
[378133136,1754740306472,-760.75,0.00026575,2]
[378133137,1754740306481,-400.0,0.00026575,2]
[378133138,1754740306491,-400.0,0.00026575,2]
[378133139,1754740306500,-400.0,0.00026575,2]
[378133140,1754740306509,-459.79,0.00026575,2]
[378133141,1754740306518,-400.0,0.00026575,2]
[378133142,1754740306527,-400.0,0.00026575,2]
[378133143,1754740306537,-1052.33,0.00026575,2]
[378133144,1754740306546,-400.0,0.00026575,2]
[378133145,1754740306555,-405.07,0.00026575,2]
[378133146,1754740306564,-707.81,0.00026575,2]
[378133147,1754740306573,-400.0,0.00026575,2]
[378133148,1754740306583,-400.0,0.00026575,2]
[378133149,1754740306592,-533.33,0.00026575,2]
[378133150,1754740306601,-432.21,0.00026575,2]
[378133151,1754740306611,-400.0,0.00026575,2]
[378133152,1754740306619,-612.81,0.00026575,2]
[378133153,1754740306629,-573.13,0.00026575,2]
[378133154,1754740306639,-674.19,0.00026575,2]
[378133155,1754740306647,-358.33252562,0.00026575,2]
[378133156,1754740306669,-41.66747438,0.00026575,2]
[378133157,1754740306679,-1186.37,0.00026575,2]
[378133158,1754740306688,-364.89987197,0.00026575,2]
[378133159,1754740306697,-538.9,0.00026575,2]
[378133160,1754740306706,-621.72,0.00026575,2]
[378133161,1754740306717,-400.0,0.00026575,2]
[378133162,1754740306726,-656.7811372,0.00026575,2]
[378133163,1754740306739,-73.9688628,0.00026575,2]
[378133164,1754740306748,-487.25,0.00026575,2]
[378133165,1754740306757,-373.8211372,0.00026575,2]
[378133166,1754740306791,-888.0,0.00024656,3]
[378133167,1754740306801,-26.1788628,0.00026575,2]
[378133168,1754740306810,-475.57,0.00026575,2]
[378133169,1754740306820,-400.0,0.00026575,2]
[378133170,1754740306829,-400.0,0.00026575,2]
[378133171,1754740306839,-694.98,0.00026575,2]
[378133172,1754740306849,-400.0,0.00026575,2]
[378133173,1754740306859,-517.55,0.00026575,2]
[378133174,1754740306869,-400.0,0.00026575,2]
[378133175,1754740306878,-400.0,0.00026575,2]
[378133176,1754740306887,-400.0,0.00026575,2]
[378133177,1754740306897,-577.78,0.00026575,2]
[378133178,1754740306907,-400.0,0.00026575,2]
[378133179,1754740306916,-490.68,0.00026575,2]
[378133180,1754740306926,-400.0,0.00026575,2]
[378133181,1754740306936,-400.0,0.00026575,2]
[378133182,1754740306946,-653.84,0.00026575,2]
[378133183,1754740306955,-578.01,0.00026575,2]
[378133184,1754740306967,-400.0,0.00026575,2]
[378133185,1754740306979,-400.0,0.00026575,2]
[378133186,1754740306994,-400.0,0.00026575,2]
[378133187,1754740307007,-552.06,0.00026575,2]
[378133188,1754740307016,-509.85,0.00026575,2]
[378133189,1754740307026,-549.19,0.00026575,2]
[378133190,1754740307045,-551.59,0.00026575,2]
[378133191,1754740307064,-400.0,0.00026575,2]
[378133192,1754740307073,-400.0,0.00026575,2]
[378133193,1754740307083,-400.0,0.00026575,2]
[378133194,1754740307092,-400.0,0.00026575,2]
[378133195,1754740307102,-400.0,0.00026575,2]
[378133196,1754740307111,-313.52227469,0.00026575,2]
[378133197,1754740307121,-400.0,0.00026575,2]